fUST/lending_fUST_20260528
["ID","MTS","AMOUNT","RATE_DAILY","PERIOD"]
[423181867,1779910247000,-500.0,8.767e-05,2]
[423181871,1779910247000,-500.0,8.767e-05,2]
[423181848,1779910247000,-500.0,8.767e-05,2]
[423181828,1779910247000,-500.0,8.767e-05,2]
[423181838,1779910247000,-500.0,8.767e-05,2]
[423181878,1779910247000,-500.0,8.767e-05,2]
[423181816,1779910247000,-500.0,8.767e-05,2]
[423181815,1779910247000,-500.0,8.767e-05,2]
[423181818,1779910247000,-500.0,8.767e-05,2]
[423181817,1779910247000,-500.0,8.767e-05,2]
[423181821,1779910247000,-500.0,8.767e-05,2]
[423181822,1779910247000,-500.0,8.767e-05,2]
[423181820,1779910247000,-500.0,8.767e-05,2]
[423181819,1779910247000,-500.0,8.767e-05,2]
[423181835,1779910247000,-500.0,8.767e-05,2]
[423181824,1779910247000,-500.0,8.767e-05,2]
[423181825,1779910247000,-500.0,8.767e-05,2]
[423181827,1779910247000,-500.0,8.767e-05,2]
[423181836,1779910247000,-500.0,8.767e-05,2]
[423181847,1779910247000,-500.0,8.767e-05,2]
[423181826,1779910247000,-500.0,8.767e-05,2]
[423181833,1779910247000,-500.0,8.767e-05,2]
[423181832,1779910247000,-500.0,8.767e-05,2]
[423181829,1779910247000,-500.0,8.767e-05,2]
[423181830,1779910247000,-500.0,8.767e-05,2]
[423181834,1779910247000,-500.0,8.767e-05,2]
[423181837,1779910247000,-500.0,8.767e-05,2]
[423181839,1779910247000,-500.0,8.767e-05,2]
[423181840,1779910247000,-500.0,8.767e-05,2]
[423181844,1779910247000,-500.0,8.767e-05,2]
[423181846,1779910247000,-500.0,8.767e-05,2]
[423181845,1779910247000,-500.0,8.767e-05,2]
[423181850,1779910247000,-1125.3,8.767e-05,2]
[423181849,1779910247000,-500.0,8.767e-05,2]
[423181843,1779910247000,-500.0,8.767e-05,2]
[423181831,1779910247000,-500.0,8.767e-05,2]
[423181823,1779910247000,-500.0,8.767e-05,2]
[423181890,1779910247000,-500.0,8.767e-05,2]
[423181882,1779910247000,-672.48,8.767e-05,2]
[423181919,1779910247000,-500.0,8.767e-05,2]
[423181921,1779910247000,-500.0,8.767e-05,2]
[423181922,1779910247000,-500.0,8.767e-05,2]
[423181923,1779910247000,-500.0,8.767e-05,2]
[423181924,1779910247000,-1200.0,8.778e-05,2]
[423181926,1779910247000,-420.0,8.779e-05,2]
[423181927,1779910247000,-420.0,8.78e-05,2]
[423181925,1779910247000,-420.0,8.779e-05,2]
[423181931,1779910247000,-500.0,9.041e-05,2]
[423181920,1779910247000,-583.62,8.767e-05,2]
[423181929,1779910247000,-500.0,9.041e-05,2]
[423181930,1779910247000,-546.5717,9.041e-05,2]
[423181932,1779910247000,-216.27,9.041e-05,2]
[423181933,1779910247000,-500.0,9.041e-05,2]
[423181915,1779910247000,-500.0,8.767e-05,2]
[423181935,1779910247000,-500.0,9.041e-05,2]
[423181937,1779910247000,-500.0,9.041e-05,2]
[423181944,1779910247000,-500.0,9.041e-05,2]
[423181936,1779910247000,-500.0,9.041e-05,2]
[423181950,1779910247000,-500.0,9.041e-05,2]
[423181940,1779910247000,-500.0,9.041e-05,2]
[423181939,1779910247000,-500.0,9.041e-05,2]
[423181951,1779910247000,-500.0,9.041e-05,2]
[423181938,1779910247000,-500.0,9.041e-05,2]
[423181946,1779910247000,-500.0,9.041e-05,2]
[423181942,1779910247000,-500.0,9.041e-05,2]
[423181948,1779910247000,-500.0,9.041e-05,2]
[423181955,1779910247000,-500.0,9.041e-05,2]
[423181953,1779910247000,-500.0,9.041e-05,2]
[423181889,1779910247000,-500.0,8.767e-05,2]
[423181934,1779910247000,-192.03,9.041e-05,2]
[423181912,1779910247000,-500.0,8.767e-05,2]
[423181928,1779910247000,-821.100533,8.954e-05,2]
[423181918,1779910247000,-500.0,8.767e-05,2]
[423181901,1779910247000,-500.0,8.767e-05,2]
[423181895,1779910247000,-500.0,8.767e-05,2]
[423181904,1779910247000,-500.0,8.767e-05,2]
[423181903,1779910247000,-500.0,8.767e-05,2]
[423181892,1779910247000,-1156.29,8.767e-05,2]
[423181885,1779910247000,-1517.97,8.767e-05,2]
[423181899,1779910247000,-602.21115187,8.767e-05,2]
[423181880,1779910247000,-500.0,8.767e-05,2]
[423181886,1779910247000,-500.0,8.767e-05,2]
[423181883,1779910247000,-392.86963807,8.767e-05,2]
[423181881,1779910247000,-568.22,8.767e-05,2]
[423181887,1779910247000,-500.0,8.767e-05,2]
[423181914,1779910247000,-1727.35,8.767e-05,2]
[423181888,1779910247000,-500.0,8.767e-05,2]
[423181884,1779910247000,-2006.93,8.767e-05,2]
[423181897,1779910247000,-500.0,8.767e-05,2]
[423181893,1779910247000,-500.0,8.767e-05,2]
[423181909,1779910247000,-500.0,8.767e-05,2]
[423181900,1779910247000,-501.53,8.767e-05,2]
[423181907,1779910247000,-500.0,8.767e-05,2]
[423181916,1779910247000,-711.93,8.767e-05,2]
[423181913,1779910247000,-500.0,8.767e-05,2]
[423181917,1779910247000,-500.0,8.767e-05,2]
[423181906,1779910247000,-9305.13,8.767e-05,2]
[423181910,1779910247000,-500.0,8.767e-05,2]
[423181908,1779910247000,-500.0,8.767e-05,2]
[423181905,1779910247000,-500.0,8.767e-05,2]
[423181898,1779910247000,-540.46,8.767e-05,2]
[423181896,1779910247000,-500.0,8.767e-05,2]
[423181894,1779910247000,-500.0,8.767e-05,2]
[423181902,1779910247000,-500.0,8.767e-05,2]
[423181911,1779910247000,-500.0,8.767e-05,2]
[423182051,1779910248000,-500.0,9.041e-05,2]
[423182041,1779910248000,-500.0,9.041e-05,2]
[423182045,1779910248000,-1125.3,9.041e-05,2]
[423182035,1779910248000,-605.87,9.041e-05,2]
[423182039,1779910248000,-500.0,9.041e-05,2]
[423182047,1779910248000,-500.0,9.041e-05,2]
[423182026,1779910248000,-500.0,9.041e-05,2]
[423182043,1779910248000,-500.0,9.041e-05,2]
[423182034,1779910248000,-500.0,9.041e-05,2]
[423182031,1779910248000,-603.80782721,9.041e-05,2]
[423182030,1779910248000,-500.0,9.041e-05,2]
[423182028,1779910248000,-423.47863348,9.041e-05,2]
[423182055,1779910248000,-499.72099654,9.041e-05,2]
[423182037,1779910248000,-500.0,9.041e-05,2]
[423182049,1779910248000,-500.0,9.041e-05,2]
[423182074,1779910248000,-1576.23,9.041e-05,2]
[423182057,1779910248000,-624.65,9.041e-05,2]
[423182058,1779910248000,-500.0,9.041e-05,2]
[423182060,1779910248000,-500.0,9.041e-05,2]
[423182062,1779910248000,-1321.14,9.041e-05,2]
[423182064,1779910248000,-153.28562773,9.041e-05,2]
[423182066,1779910248000,-764.39,9.041e-05,2]
[423182068,1779910248000,-500.0,9.041e-05,2]
[423182070,1779910248000,-550.20752017,9.041e-05,2]
[423182078,1779910248000,-500.0,9.041e-05,2]
[423182072,1779910248000,-536.5,9.041e-05,2]
[423182076,1779910248000,-658.23,9.041e-05,2]
[423182079,1779910248000,-500.0,9.041e-05,2]
[423182081,1779910248000,-500.0,9.041e-05,2]
[423182013,1779910248000,-500.0,9.041e-05,2]
[423182053,1779910248000,-500.0,9.041e-05,2]
[423182023,1779910248000,-500.0,9.041e-05,2]
[423181966,1779910248000,-500.0,9.041e-05,2]
[423182009,1779910248000,-500.0,9.041e-05,2]
[423182083,1779910248000,-500.0,9.041e-05,2]
[423181968,1779910248000,-500.0,9.041e-05,2]
[423181959,1779910248000,-500.0,9.041e-05,2]
[423181957,1779910248000,-500.0,9.041e-05,2]
[423181971,1779910248000,-500.0,9.041e-05,2]
[423181973,1779910248000,-500.0,9.041e-05,2]
[423181962,1779910248000,-500.0,9.041e-05,2]
[423181964,1779910248000,-500.0,9.041e-05,2]
[423181960,1779910248000,-500.0,9.041e-05,2]
[423181975,1779910248000,-500.0,9.041e-05,2]
[423181977,1779910248000,-500.0,9.041e-05,2]
[423181980,1779910248000,-500.0,9.041e-05,2]
[423181982,1779910248000,-500.0,9.041e-05,2]
[423181978,1779910248000,-500.0,9.041e-05,2]
[423181986,1779910248000,-500.0,9.041e-05,2]
[423181998,1779910248000,-500.0,9.041e-05,2]
[423181994,1779910248000,-500.0,9.041e-05,2]
[423182015,1779910248000,-500.0,9.041e-05,2]
[423182007,1779910248000,-500.0,9.041e-05,2]
[423182019,1779910248000,-500.0,9.041e-05,2]
[423182005,1779910248000,-500.0,9.041e-05,2]
[423182011,1779910248000,-500.0,9.041e-05,2]
[423182017,1779910248000,-500.0,9.041e-05,2]
[423182021,1779910248000,-500.0,9.041e-05,2]
[423182001,1779910248000,-500.0,9.041e-05,2]
[423182000,1779910248000,-500.0,9.041e-05,2]
[423181996,1779910248000,-500.0,9.041e-05,2]
[423181988,1779910248000,-500.0,9.041e-05,2]
[423181984,1779910248000,-500.0,9.041e-05,2]
[423181992,1779910248000,-500.0,9.041e-05,2]
[423181990,1779910248000,-500.0,9.041e-05,2]
[423182003,1779910248000,-500.0,9.041e-05,2]
[423182085,1779910248000,-500.0,9.041e-05,2]
[423181970,1779910248000,-500.0,9.041e-05,2]
[423182095,1779910248000,-500.0,9.041e-05,2]
[423182148,1779910248000,-500.0,9.041e-05,2]
[423182146,1779910248000,-500.0,9.041e-05,2]
[423182164,1779910248000,-500.0,9.041e-05,2]
[423182158,1779910248000,-500.0,9.041e-05,2]
[423182166,1779910248000,-1727.35,9.041e-05,2]
[423182170,1779910248000,-711.93,9.041e-05,2]
[423182172,1779910248000,-254.68062367,9.041e-05,2]
[423182190,1779910248000,-152.0,9.13e-05,7]
[423182174,1779910248000,-527.61054272,9.041e-05,2]
[423182179,1779910248000,-500.0,9.041e-05,2]
[423182176,1779910248000,-500.0,9.041e-05,2]
[423182187,1779910248000,-152.0,9.127e-05,7]
[423182168,1779910248000,-500.0,9.041e-05,2]
[423182178,1779910248000,-583.62,9.041e-05,2]
[423182183,1779910248000,-500.0,9.041e-05,2]
[423182192,1779910248000,-821.100533,9.277e-05,2]
[423182185,1779910248000,-10000.0,9.123e-05,2]
[423182087,1779910248000,-500.0,9.041e-05,2]
[423182215,1779910248000,-500.0,9.315e-05,2]
[423182216,1779910248000,-500.0,9.315e-05,2]
[423182210,1779910248000,-243.34,9.315e-05,2]
[423182206,1779910248000,-500.0,9.315e-05,2]
[423182204,1779910248000,-500.0,9.315e-05,2]
[423182144,1779910248000,-500.0,9.041e-05,2]
[423182202,1779910248000,-500.0,9.315e-05,2]
[423182200,1779910248000,-546.5717,9.315e-05,2]
[423182194,1779910248000,-720.0,9.3e-05,2]
[423182198,1779910248000,-500.0,9.315e-05,2]
[423182196,1779910248000,-170.1922,9.315e-05,2]
[423182181,1779910248000,-500.0,9.041e-05,2]
[423182188,1779910248000,-152.0,9.127e-05,7]
[423182208,1779910248000,-500.0,9.315e-05,2]
[423182162,1779910248000,-500.0,9.041e-05,2]
[423182212,1779910248000,-500.0,9.315e-05,2]
[423182142,1779910248000,-500.0,9.041e-05,2]
[423182160,1779910248000,-500.0,9.041e-05,2]
[423182093,1779910248000,-632.03,9.041e-05,2]
[423182097,1779910248000,-500.0,9.041e-05,2]
[423182098,1779910248000,-500.0,9.041e-05,2]
[423182089,1779910248000,-500.0,9.041e-05,2]
[423182102,1779910248000,-500.0,9.041e-05,2]
[423182099,1779910248000,-207.6734297,9.041e-05,2]
[423182100,1779910248000,-500.0,9.041e-05,2]
[423182104,1779910248000,-568.22,9.041e-05,2]
[423182106,1779910248000,-672.48,9.041e-05,2]
[423182108,1779910248000,-2006.93,9.041e-05,2]
[423182110,1779910248000,-1517.97,9.041e-05,2]
[423182114,1779910248000,-500.0,9.041e-05,2]
[423182112,1779910248000,-624.2,9.041e-05,2]
[423182116,1779910248000,-500.0,9.041e-05,2]
[423182091,1779910248000,-500.0,9.041e-05,2]
[423182118,1779910248000,-500.0,9.041e-05,2]
[423182120,1779910248000,-500.0,9.041e-05,2]
[423182154,1779910248000,-500.0,9.041e-05,2]
[423182156,1779910248000,-500.0,9.041e-05,2]
[423182152,1779910248000,-500.0,9.041e-05,2]
[423182150,1779910248000,-9305.13,9.041e-05,2]
[423182138,1779910248000,-501.53,9.041e-05,2]
[423182134,1779910248000,-567.68,9.041e-05,2]
[423182140,1779910248000,-500.0,9.041e-05,2]
[423182132,1779910248000,-500.0,9.041e-05,2]
[423182124,1779910248000,-1156.29,9.041e-05,2]
[423182126,1779910248000,-500.0,9.041e-05,2]
[423182128,1779910248000,-604.08,9.041e-05,2]
[423182122,1779910248000,-1170.47,9.041e-05,2]
[423182136,1779910248000,-540.46,9.041e-05,2]
[423182130,1779910248000,-500.0,9.041e-05,2]
[423182309,1779910249000,-500.0,9.315e-05,2]
[423182298,1779910249000,-1321.14,9.315e-05,2]
[423182296,1779910249000,-500.0,9.315e-05,2]
[423182288,1779910249000,-500.0,9.315e-05,2]
[423182290,1779910249000,-500.0,9.315e-05,2]
[423182287,1779910249000,-1125.3,9.315e-05,2]
[423182285,1779910249000,-500.0,9.315e-05,2]
[423182283,1779910249000,-500.0,9.315e-05,2]
[423182292,1779910249000,-624.65,9.315e-05,2]
[423182311,1779910249000,-500.0,9.315e-05,2]
[423182294,1779910249000,-500.0,9.315e-05,2]
[423182281,1779910249000,-500.0,9.315e-05,2]
[423182330,1779910249000,-500.0,9.315e-05,2]
[423182313,1779910249000,-500.0,9.315e-05,2]
[423182301,1779910249000,-500.0,9.315e-05,2]
[423182303,1779910249000,-536.5,9.315e-05,2]
[423182305,1779910249000,-1576.23,9.315e-05,2]
[423182307,1779910249000,-658.23,9.315e-05,2]
[423182332,1779910249000,-568.22,9.315e-05,2]
[423182338,1779910249000,-1517.97,9.315e-05,2]
[423182321,1779910249000,-500.0,9.315e-05,2]
[423182336,1779910249000,-2006.93,9.315e-05,2]
[423182334,1779910249000,-672.48,9.315e-05,2]
[423182326,1779910249000,-632.03,9.315e-05,2]
[423182328,1779910249000,-500.0,9.315e-05,2]
[423182273,1779910249000,-500.0,9.315e-05,2]
[423182300,1779910249000,-764.39,9.315e-05,2]
[423182279,1779910249000,-634.75,9.315e-05,2]
[423182255,1779910249000,-500.0,9.315e-05,2]
[423182275,1779910249000,-500.0,9.315e-05,2]
[423182323,1779910249000,-500.0,9.315e-05,2]
[423182218,1779910249000,-479.56,9.315e-05,2]
[423182232,1779910249000,-500.0,9.315e-05,2]
[423182222,1779910249000,-500.0,9.315e-05,2]
[423182226,1779910249000,-384.12,9.315e-05,2]
[423182230,1779910249000,-500.0,9.315e-05,2]
[423182224,1779910249000,-500.0,9.315e-05,2]
[423182235,1779910249000,-500.0,9.315e-05,2]
[423182239,1779910249000,-612.76,9.315e-05,2]
[423182220,1779910249000,-500.0,9.315e-05,2]
[423182233,1779910249000,-500.0,9.315e-05,2]
[423182237,1779910249000,-500.0,9.315e-05,2]
[423182228,1779910249000,-500.0,9.315e-05,2]
[423182277,1779910249000,-500.0,9.315e-05,2]
[423182241,1779910249000,-500.0,9.315e-05,2]
[423182245,1779910249000,-500.0,9.315e-05,2]
[423182259,1779910249000,-500.0,9.315e-05,2]
[423182247,1779910249000,-500.0,9.315e-05,2]
[423182257,1779910249000,-500.0,9.315e-05,2]
[423182261,1779910249000,-500.0,9.315e-05,2]
[423182263,1779910249000,-500.0,9.315e-05,2]
[423182249,1779910249000,-500.0,9.315e-05,2]
[423182253,1779910249000,-500.0,9.315e-05,2]
[423182251,1779910249000,-500.0,9.315e-05,2]
[423182265,1779910249000,-500.0,9.315e-05,2]
[423182269,1779910249000,-500.0,9.315e-05,2]
[423182271,1779910249000,-500.0,9.315e-05,2]
[423182267,1779910249000,-500.0,9.315e-05,2]
[423182243,1779910249000,-500.0,9.315e-05,2]
[423182340,1779910249000,-500.0,9.315e-05,2]
[423182346,1779910249000,-1170.47,9.315e-05,2]
[423182344,1779910249000,-500.0,9.315e-05,2]
[423182406,1779910249000,-824.5744,9.589e-05,2]
[423182402,1779910249000,-500.0,9.589e-05,2]
[423182404,1779910249000,-168.36,9.589e-05,2]
[423182400,1779910249000,-500.0,9.589e-05,2]
[423182401,1779910249000,-500.0,9.589e-05,2]
[423182416,1779910249000,-500.0,9.589e-05,2]
[423182428,1779910249000,-456.15,9.589e-05,2]
[423182418,1779910249000,-500.0,9.589e-05,2]
[423182435,1779910249000,-500.0,9.589e-05,2]
[423182433,1779910249000,-500.0,9.589e-05,2]
[423182420,1779910249000,-500.0,9.589e-05,2]
[423182430,1779910249000,-500.0,9.589e-05,2]
[423182424,1779910249000,-500.0,9.589e-05,2]
[423182422,1779910249000,-500.0,9.589e-05,2]
[423182426,1779910249000,-500.0,9.589e-05,2]
[423182439,1779910249000,-1125.3,9.589e-05,2]
[423182441,1779910249000,-500.0,9.589e-05,2]
[423182443,1779910249000,-624.65,9.589e-05,2]
[423182445,1779910249000,-500.0,9.589e-05,2]
[423182447,1779910249000,-1321.14,9.589e-05,2]
[423182449,1779910249000,-764.39,9.589e-05,2]
[423182453,1779910249000,-1576.23,9.589e-05,2]
[423182455,1779910249000,-658.23,9.589e-05,2]
[423182451,1779910249000,-536.5,9.589e-05,2]
[423182460,1779910249000,-500.0,9.589e-05,2]
[423182458,1779910249000,-500.0,9.589e-05,2]
[423182342,1779910249000,-500.0,9.315e-05,2]
[423182397,1779910249000,-500.0,9.589e-05,2]
[423182412,1779910249000,-500.0,9.589e-05,2]
[423182437,1779910249000,-500.0,9.589e-05,2]
[423182399,1779910249000,-500.0,9.589e-05,2]
[423182348,1779910249000,-1156.29,9.315e-05,2]
[423182414,1779910249000,-500.0,9.589e-05,2]
[423182350,1779910249000,-500.0,9.315e-05,2]
[423182361,1779910249000,-500.0,9.315e-05,2]
[423182363,1779910249000,-500.0,9.315e-05,2]
[423182355,1779910249000,-540.46,9.315e-05,2]
[423182357,1779910249000,-501.53,9.315e-05,2]
[423182352,1779910249000,-217.0,9.315e-05,2]
[423182359,1779910249000,-500.0,9.315e-05,2]
[423182365,1779910249000,-500.0,9.315e-05,2]
[423182369,1779910249000,-500.0,9.315e-05,2]
[423182371,1779910249000,-500.0,9.315e-05,2]
[423182374,1779910249000,-500.0,9.315e-05,2]
[423182380,1779910249000,-500.0,9.315e-05,2]
[423182367,1779910249000,-9305.13,9.315e-05,2]
[423182408,1779910249000,-500.0,9.589e-05,2]
[423182410,1779910249000,-500.0,9.589e-05,2]
[423182382,1779910249000,-500.0,9.315e-05,2]
[423182398,1779910249000,-498.83,9.589e-05,2]
[423182396,1779910249000,-277.24,9.589e-05,2]
[423182392,1779910249000,-583.62,9.315e-05,2]
[423182390,1779910249000,-500.0,9.315e-05,2]
[423182394,1779910249000,-500.0,9.315e-05,2]
[423182376,1779910249000,-500.0,9.315e-05,2]
[423182388,1779910249000,-711.93,9.315e-05,2]
[423182384,1779910249000,-1727.35,9.315e-05,2]
[423182386,1779910249000,-500.0,9.315e-05,2]
[423182378,1779910249000,-500.0,9.315e-05,2]
[423182543,1779910250000,-207.2,9.863e-05,2]
[423182538,1779910250000,-500.0,9.863e-05,2]
[423182555,1779910250000,-590.4,9.863e-05,2]
[423182553,1779910250000,-500.0,9.863e-05,2]
[423182541,1779910250000,-500.0,9.863e-05,2]
[423182539,1779910250000,-824.5744,9.863e-05,2]
[423182520,1779910250000,-711.93,9.589e-05,2]
[423182532,1779910250000,-409.47,9.863e-05,2]
[423182534,1779910250000,-500.0,9.863e-05,2]
[423182524,1779910250000,-583.62,9.589e-05,2]
[423182530,1779910250000,-500.0,9.863e-05,2]
[423182547,1779910250000,-500.0,9.863e-05,2]
[423182536,1779910250000,-500.0,9.863e-05,2]
[423182559,1779910250000,-500.0,9.863e-05,2]
[423182574,1779910250000,-166.9,9.863e-05,2]
[423182557,1779910250000,-500.0,9.863e-05,2]
[423182551,1779910250000,-500.0,9.863e-05,2]
[423182545,1779910250000,-593.5,9.863e-05,2]
[423182561,1779910250000,-500.0,9.863e-05,2]
[423182563,1779910250000,-500.0,9.863e-05,2]
[423182565,1779910250000,-214.3,9.863e-05,2]
[423182567,1779910250000,-500.0,9.863e-05,2]
[423182579,1779910250000,-764.39,9.863e-05,2]
[423182569,1779910250000,-1125.3,9.863e-05,2]
[423182571,1779910250000,-500.0,9.863e-05,2]
[423182576,1779910250000,-1321.14,9.863e-05,2]
[423182573,1779910250000,-624.65,9.863e-05,2]
[423182527,1779910250000,-300.0,9.657e-05,2]
[423182549,1779910250000,-500.0,9.863e-05,2]
[423182522,1779910250000,-500.0,9.589e-05,2]
[423182465,1779910250000,-500.0,9.589e-05,2]
[423182518,1779910250000,-500.0,9.589e-05,2]
[423182582,1779910250000,-1576.23,9.863e-05,2]
[423182462,1779910250000,-500.0,9.589e-05,2]
[423182464,1779910250000,-500.0,9.589e-05,2]
[423182468,1779910250000,-632.03,9.589e-05,2]
[423182479,1779910250000,-1517.97,9.589e-05,2]
[423182481,1779910250000,-500.0,9.589e-05,2]
[423182477,1779910250000,-2006.93,9.589e-05,2]
[423182487,1779910250000,-1170.47,9.589e-05,2]
[423182485,1779910250000,-500.0,9.589e-05,2]
[423182469,1779910250000,-500.0,9.589e-05,2]
[423182483,1779910250000,-500.0,9.589e-05,2]
[423182473,1779910250000,-568.22,9.589e-05,2]
[423182475,1779910250000,-672.48,9.589e-05,2]
[423182471,1779910250000,-500.0,9.589e-05,2]
[423182489,1779910250000,-1156.29,9.589e-05,2]
[423182503,1779910250000,-9305.13,9.589e-05,2]
[423182505,1779910250000,-500.0,9.589e-05,2]
[423182509,1779910250000,-500.0,9.589e-05,2]
[423182507,1779910250000,-500.0,9.589e-05,2]
[423182495,1779910250000,-501.53,9.589e-05,2]
[423182497,1779910250000,-500.0,9.589e-05,2]
[423182493,1779910250000,-540.46,9.589e-05,2]
[423182491,1779910250000,-500.0,9.589e-05,2]
[423182514,1779910250000,-282.96,9.589e-05,2]
[423182499,1779910250000,-500.0,9.589e-05,2]
[423182511,1779910250000,-500.0,9.589e-05,2]
[423182513,1779910250000,-500.0,9.589e-05,2]
[423182501,1779910250000,-422.12428833,9.589e-05,2]
[423182517,1779910250000,-1727.35,9.589e-05,2]
[423182528,1779910250000,-300.0,9.657e-05,2]
[423182581,1779910250000,-536.5,9.863e-05,2]
[423182671,1779910250000,-500.0,0.00010136,2]
[423182590,1779910250000,-500.0,9.863e-05,2]
[423182661,1779910250000,-824.5744,0.00010136,2]
[423182648,1779910250000,-500.0,9.863e-05,2]
[423182650,1779910250000,-583.62,9.863e-05,2]
[423182652,1779910250000,-12231.453103,9.9e-05,2]
[423182667,1779910250000,-500.0,0.00010136,2]
[423182665,1779910250000,-500.0,0.00010136,2]
[423182669,1779910250000,-500.0,0.00010136,2]
[423182655,1779910250000,-500.0,0.00010136,2]
[423182653,1779910250000,-500.0,0.00010136,2]
[423182704,1779910250000,-500.0,0.00010136,2]
[423182680,1779910250000,-500.0,0.00010136,2]
[423182682,1779910250000,-1125.3,0.00010136,2]
[423182684,1779910250000,-500.0,0.00010136,2]
[423182686,1779910250000,-624.65,0.00010136,2]
[423182675,1779910250000,-153.3,0.00010136,2]
[423182688,1779910250000,-1321.14,0.00010136,2]
[423182677,1779910250000,-500.0,0.00010136,2]
[423182673,1779910250000,-500.0,0.00010136,2]
[423182678,1779910250000,-500.0,0.00010136,2]
[423182690,1779910250000,-764.39,0.00010136,2]
[423182692,1779910250000,-536.5,0.00010136,2]
[423182694,1779910250000,-1576.23,0.00010136,2]
[423182696,1779910250000,-658.23,0.00010136,2]
[423182700,1779910250000,-500.0,0.00010136,2]
[423182698,1779910250000,-500.0,0.00010136,2]
[423182702,1779910250000,-500.0,0.00010136,2]
[423182710,1779910250000,-500.0,0.00010136,2]
[423182706,1779910250000,-632.03,0.00010136,2]
[423182708,1779910250000,-500.0,0.00010136,2]
[423182663,1779910250000,-500.0,0.00010136,2]
[423182659,1779910250000,-500.0,0.00010136,2]
[423182584,1779910250000,-658.23,9.863e-05,2]
[423182646,1779910250000,-711.93,9.863e-05,2]
[423182657,1779910250000,-175.69,0.00010136,2]
[423182588,1779910250000,-500.0,9.863e-05,2]
[423182586,1779910250000,-500.0,9.863e-05,2]
[423182592,1779910250000,-500.0,9.863e-05,2]
[423182594,1779910250000,-203.64,9.863e-05,2]
[423182596,1779910250000,-632.03,9.863e-05,2]
[423182598,1779910250000,-500.0,9.863e-05,2]
[423182606,1779910250000,-2006.93,9.863e-05,2]
[423182600,1779910250000,-500.0,9.863e-05,2]
[423182612,1779910250000,-500.0,9.863e-05,2]
[423182610,1779910250000,-486.52,9.863e-05,2]
[423182604,1779910250000,-672.48,9.863e-05,2]
[423182608,1779910250000,-1517.97,9.863e-05,2]
[423182614,1779910250000,-500.0,9.863e-05,2]
[423182602,1779910250000,-568.22,9.863e-05,2]
[423182618,1779910250000,-1156.29,9.863e-05,2]
[423182616,1779910250000,-1170.47,9.863e-05,2]
[423182640,1779910250000,-500.0,9.863e-05,2]
[423182642,1779910250000,-1727.35,9.863e-05,2]
[423182638,1779910250000,-500.0,9.863e-05,2]
[423182636,1779910250000,-500.0,9.863e-05,2]
[423182632,1779910250000,-200.6,9.863e-05,2]
[423182634,1779910250000,-500.0,9.863e-05,2]
[423182644,1779910250000,-500.0,9.863e-05,2]
[423182628,1779910250000,-500.0,9.863e-05,2]
[423182624,1779910250000,-501.53,9.863e-05,2]
[423182630,1779910250000,-9305.13,9.863e-05,2]
[423182622,1779910250000,-540.46,9.863e-05,2]
[423182620,1779910250000,-500.0,9.863e-05,2]
[423182626,1779910250000,-500.0,9.863e-05,2]
[423182794,1779910251000,-764.39,0.0001041,2]
[423182800,1779910251000,-658.23,0.0001041,2]
[423182796,1779910251000,-536.5,0.0001041,2]
[423182798,1779910251000,-1576.23,0.0001041,2]
[423182782,1779910251000,-500.0,0.0001041,2]
[423182788,1779910251000,-500.0,0.0001041,2]
[423182784,1779910251000,-500.0,0.0001041,2]
[423182779,1779910251000,-500.0,0.0001041,2]
[423182777,1779910251000,-500.0,0.0001041,2]
[423182790,1779910251000,-624.65,0.0001041,2]